bitfinex-derivatives/quotes_ETHF0:USTF0_20250427
["timestamp","ask_amount","ask_price","bid_price","bid_amount"]
[1745787033703,7.27492,1805.9,1805.8,3.4846]
[1745787034395,7.27492,1805.9,1805.8,4.59178]
[1745787035391,7.27492,1805.9,1805.8,3.4846]
[1745787037206,7.27492,1805.9,1805.8,4.59178]
[1745787037505,7.27492,1805.9,1805.8,3.4846]
[1745787038805,7.27492,1805.9,1805.8,4.59178]
[1745787040306,7.27492,1805.9,1805.8,3.4846]
[1745787042016,7.27492,1805.9,1805.8,4.59178]
[1745787042614,7.27492,1805.9,1805.8,0.2768]
[1745787042811,1.10737,1805.5,1805.4,3.2078]
[1745787043612,1.10737,1805.5,1805.4,4.7865]
[1745787044015,1.95617,1805.5,1805.4,4.7865]
[1745787044208,5.67817,1805.5,1805.4,4.7865]
[1745787044409,5.67817,1805.5,1805.4,5.89393]
[1745787045215,7.28147,1805.5,1805.4,5.89393]
[1745787045916,7.28147,1805.5,1805.4,4.7865]
[1745787046213,7.28147,1805.5,1805.4,5.89393]
[1745787046417,7.28147,1805.5,1805.4,4.7865]
[1745787047315,7.28147,1805.5,1805.4,1.5787]
[1745787047515,1.10743,1805.4,1805.3,3.2078]
[1745787047716,2.71073,1805.4,1805.3,3.2078]
[1745787048316,6.43273,1805.4,1805.3,4.8849]
[1745787048912,3.722,1805.4,1805.3,5.99239]
[1745787049117,1.95621,1805.5,1805.4,1.10743]
[1745787049416,1.95621,1805.5,1805.4,2.78453]
[1745787049817,1.95621,1805.5,1805.3,3.2078]
[1745787049818,1.10743,1805.4,1805.3,3.2078]
[1745787050119,6.45843,1805.4,1805.3,3.2078]
[1745787050617,10.02243,1805.4,1805.3,3.2078]
[1745787052317,1.10749,1805.3,1805.2,3.79894]
[1745787052618,1.10749,1805.3,1805.2,3.60704]
[1745787052815,2.75939,1805.3,1805.2,3.60704]
[1745787054118,2.75939,1805.3,1805.2,2.4995]
[1745787054320,1.10755,1805.2,1805.1,4.31539]
[1745787054625,1.92855,1805.2,1805.1,6.00179]
[1745787056424,1.92855,1805.2,1805.1,4.8942]
[1745787057724,1.92855,1805.2,1805.1,6.00181]
[1745787058229,5.65055,1805.2,1805.1,2.79401]
[1745787059116,1.92855,1805.2,1805.1,2.79401]
[1745787059713,1.92855,1805.2,1805.1,1.6864]
[1745787059918,3.65345,1805.2,1805.1,1.6864]
[1745787060123,1.10808,1804.4,1804.3,3.2078]
[1745787060322,2.76986,1804.6,1804.1,3.3008]
[1745787060323,1.1081,1804.3,1804.2,1.6371]
[1745787060825,1.1081,1804.3,1804.2,2.74526]
[1745787061122,1.10806,1804.4,1804.3,1.10809]
[1745787062125,4.83006,1804.4,1804.3,1.10809]
[1745787062726,3.548,1804.6,1804.3,9.31589]
[1745787062920,4.65596,1804.6,1804.5,1.10798]
[1745787063324,4.65596,1804.6,1804.5,2.4388]
[1745787065435,1.10804,1804.4,1804.3,3.2078]
[1745787066034,1.10804,1804.4,1804.3,4.3159]
[1745787066229,1.10804,1804.4,1804.3,6.0422]
[1745787071545,1.10804,1804.4,1804.3,2.8344]
[1745787071745,1.10804,1804.4,1804.3,6.0422]
[1745787075149,1.10804,1804.4,1804.3,4.9341]
[1745787075448,1.1081,1804.3,1804.2,0.7973]
[1745787075651,1.10816,1804.3,1804.2,1.10815]
[1745787076949,1.10816,1804.2,1804.1,1.6406]
[1745787077153,4.38526,1804.2,1804.1,1.6406]
[1745787079350,1.10829,1804.0,1803.9,4.31611]
[1745787079651,3.2771,1804.2,1804.0,1.10829]
[1745787079652,2.76477,1804.1,1804.0,1.10829]
[1745787085843,1.6565,1804.1,1804.0,1.10829]
[1745787086050,2.71539,1804.2,1804.1,1.10823]
[1745787086845,3.2078,1804.5,1804.0,1.6654]
[1745787087054,3.564,1804.4,1804.3,1.10809]
[1745787087544,5.97747,1804.7,1804.5,1.10798]
[1745787087545,4.67195,1804.6,1804.5,1.10798]
[1745787088251,6.32095,1804.6,1804.5,2.78708]
[1745787089153,10.04295,1804.6,1804.5,2.78708]
[1745787108270,8.935,1804.6,1804.5,2.78708]
[1745787110578,7.286,1804.6,1804.5,2.78708]
[1745787111174,3.564,1804.6,1804.5,2.78708]
[1745787113475,3.564,1804.6,1804.5,5.99488]
[1745787114279,2.74075,1804.8,1804.7,1.10786]
[1745787114580,5.1769,1804.8,1804.7,1.10786]
[1745787115179,5.1769,1804.8,1804.7,2.83966]
[1745787115477,6.2847,1804.8,1804.7,2.83966]
[1745787116274,5.1769,1804.8,1804.7,2.83966]
[1745787116781,3.544,1804.8,1804.7,2.83966]
[1745787116981,3.544,1804.8,1804.7,3.62386]
[1745787117280,4.41358,1804.9,1804.8,1.1078]
[1745787117481,7.95758,1804.9,1804.8,1.1078]
[1745787117682,4.366,1804.9,1804.8,2.8396]
[1745787118182,7.266,1804.9,1804.8,2.8396]
[1745787119080,3.544,1804.9,1804.8,2.8396]
[1745787120675,4.65174,1804.9,1804.8,2.8396]
[1745787120874,6.24334,1804.9,1804.8,2.8396]
[1745787121084,5.1356,1804.9,1804.8,2.8396]
[1745787123385,6.24334,1804.9,1804.8,2.8396]
[1745787124783,6.24334,1804.9,1804.7,3.2078]
[1745787124784,1.1078,1804.8,1804.7,3.2078]
[1745787124983,3.5513,1804.8,1804.7,3.2078]
[1745787125185,7.2733,1804.8,1804.7,4.31566]
[1745787125982,3.722,1804.8,1804.7,4.31566]
[1745787126187,1.1078,1804.8,1804.7,4.31566]
[1745787126484,2.6811,1804.8,1804.7,3.2078]
[1745787126989,2.6811,1804.8,1804.7,4.31566]
[1745787127189,6.4031,1804.8,1804.7,4.31566]
[1745787127694,6.4031,1804.8,1804.7,3.2078]
[1745787127887,6.4031,1804.8,1804.7,4.31566]
[1745787135697,6.4031,1804.8,1804.7,1.10786]
[1745787150711,5.2953,1804.8,1804.6,4.778]
[1745787151012,4.32986,1804.7,1804.3,3.2078]
[1745787151215,1.10801,1804.5,1804.4,1.108]
[1745787151616,2.79351,1804.5,1804.4,1.108]
[1745787152219,6.51551,1804.5,1804.4,1.108]
[1745787156714,7.35771,1804.5,1804.4,1.108]
[1745787166622,1.10804,1804.4,1804.3,2.69316]
[1745787166824,2.71494,1804.4,1804.3,2.69316]
[1745787167125,3.56094,1804.4,1804.3,2.69316]
[1745787169120,2.4529,1804.4,1804.3,2.69316]
[1745787169725,5.6607,1804.4,1804.3,2.69316]
[1745787171329,4.0538,1804.4,1804.3,2.69316]
[1745787171832,3.2078,1804.4,1804.3,2.69316]
[1745787186748,3.58683,1804.5,1804.4,1.10804]
[1745787186749,6.79463,1804.5,1804.4,1.10804]
[1745787187147,10.51663,1804.5,1804.4,1.10804]
[1745787187851,7.30883,1804.5,1804.4,1.10804]
[1745787188043,10.51663,1804.5,1804.4,1.10804]
[1745787188452,6.9298,1804.5,1804.4,1.10804]
[1745787188752,6.9298,1804.5,1804.4,1.95524]
[1745787189249,3.2078,1804.5,1804.4,1.95524]
[1745787189751,1.10792,1804.6,1804.5,1.10798]
[1745787189952,1.10792,1804.6,1804.5,3.50398]
[1745787190556,9.53831,1804.7,1804.6,1.10792]
[1745787191256,13.26031,1804.7,1804.6,1.10792]
[1745787193255,1.10792,1804.6,1804.5,3.50395]
[1745787193452,2.78002,1804.6,1804.5,3.50395]
[1745787203063,1.10792,1804.6,1804.5,3.50395]
[1745787203365,6.7498,1804.7,1804.6,1.10792]
[1745787203563,6.7498,1804.7,1804.6,3.56272]
[1745787205867,7.85766,1804.7,1804.6,3.56272]
[1745787206062,3.542,1804.7,1804.6,3.56272]
[1745787209464,1.10808,1804.4,1804.3,1.10809]
[1745787209769,1.10808,1804.4,1804.3,1.7345]
[1745787209959,1.10808,1804.4,1804.3,2.8426]
[1745787210160,3.68758,1804.4,1804.3,2.8426]
[1745787210466,3.68758,1804.4,1804.3,1.7345]
[1745787210668,1.10815,1804.3,1804.1,4.31598]
[1745787210868,1.7294,1804.3,1804.1,6.05048]
[1745787211567,1.10816,1804.2,1804.1,6.05048]
[1745787211770,2.83756,1804.3,1804.2,1.10816]
[1745787213978,2.83756,1804.3,1804.1,6.05049]
[1745787214869,1.10816,1804.2,1804.1,6.05049]
[1745787215871,2.83753,1804.3,1804.2,1.10816]
[1745787216071,2.83753,1804.3,1804.2,2.82766]
[1745787216571,1.10813,1804.3,1804.2,2.82766]
[1745787217972,7.19899,1804.4,1804.3,1.1081]
[1745787218172,7.19899,1804.4,1804.3,2.8276]
[1745787218663,7.19899,1804.4,1804.3,1.7195]
[1745787220169,7.19899,1804.4,1804.3,2.8276]
[1745787222172,2.5499,1804.4,1804.3,2.8276]
[1745787222371,6.7488,1804.5,1804.4,1.10804]
[1745787222669,6.7488,1804.5,1804.4,3.56264]
[1745787224969,7.85678,1804.5,1804.4,3.56264]
[1745787225877,4.31578,1804.5,1804.4,3.56264]
[1745787226073,5.14438,1804.5,1804.4,3.56264]
[1745787226469,4.0364,1804.5,1804.4,3.56264]
[1745787227668,5.14438,1804.5,1804.4,3.56264]
[1745787227869,4.0364,1804.5,1804.4,3.56264]
[1745787230078,5.14438,1804.5,1804.4,3.56264]
[1745787230282,4.0364,1804.5,1804.4,3.56264]
[1745787231584,5.14438,1804.5,1804.4,3.56264]
[1745787232183,1.10807,1804.4,1804.3,1.10806]
[1745787232381,1.10807,1804.4,1804.3,2.68006]
[1745787232681,5.14443,1804.5,1804.4,1.10804]
[1745787239092,1.93663,1804.5,1804.4,1.10804]
[1745787239693,3.60733,1804.5,1804.4,1.10804]
[1745787253504,1.10803,1804.5,1804.4,1.10804]
[1745787253896,1.10803,1804.5,1804.4,1.94214]
[1745787255400,2.74043,1804.5,1804.4,1.10804]
[1745787256803,1.10804,1804.4,1804.3,2.68006]
[1745787257006,4.37224,1804.4,1804.3,2.68006]
[1745787261509,3.2642,1804.4,1804.3,2.68006]
[1745787261907,1.10804,1804.5,1804.4,1.10804]
[1745787262109,1.10804,1804.5,1804.4,2.84974]
[1745787268906,2.83314,1804.5,1804.4,2.84974]
[1745787273112,3.54,1804.7,1804.6,1.10792]
[1745787273717,3.54,1804.7,1804.6,2.82262]
[1745787275016,4.64786,1804.7,1804.6,2.82262]
[1745787275319,3.54,1804.7,1804.6,2.82262]
[1745787283328,6.0489,1804.7,1804.6,2.82262]
[1745787289628,7.15676,1804.7,1804.6,2.82262]
[1745787290829,6.0489,1804.7,1804.6,2.82262]
[1745787291920,5.12249,1804.9,1804.6,1.7147]
[1745787292230,5.92009,1804.9,1804.8,1.1078]
[1745787296623,2.71229,1804.9,1804.8,1.1078]
[1745787296822,5.92009,1804.9,1804.8,1.1078]
[1745787301830,1.1078,1804.8,1804.7,2.67931]
[1745787303332,2.7016,1804.8,1804.7,2.67931]
[1745787306326,4.36339,1804.8,1804.3,1.10805]
[1745787306535,1.10806,1804.4,1804.3,1.10806]
[1745787306736,1.10813,1804.3,1804.2,1.10813]
[1745787307037,1.10816,1804.2,1804.1,6.01989]
[1745787307239,4.8793,1804.2,1804.1,2.81209]
[1745787307430,5.98746,1804.2,1804.1,2.81209]
[1745787307630,5.689,1804.2,1804.1,2.81209]
[1745787313645,4.8793,1804.2,1804.1,2.81209]
[1745787315146,1.6715,1804.2,1804.1,2.81209]
[1745787315552,0.8412,1804.3,1804.2,1.10816]
[1745787315741,2.5619,1804.3,1804.2,2.76516]
[1745787320855,3.539,1804.4,1804.3,1.1081]
[1745787321060,8.4315,1804.5,1804.4,1.10804]
[1745787321557,8.4315,1804.5,1804.4,2.80974]
[1745787324756,5.2237,1804.5,1804.4,2.80974]
[1745787325651,6.9095,1804.5,1804.4,2.80974]
[1745787327562,3.2078,1804.6,1804.5,1.10798]
[1745787327758,5.7137,1804.8,1804.7,1.10786]
[1745787327960,9.2537,1804.8,1804.7,1.10786]
[1745787328761,9.2537,1804.8,1804.7,2.84406]
[1745787328962,10.1126,1804.8,1804.7,2.84406]
[1745787342063,9.2925,1804.8,1804.7,2.84406]
[1745787342370,6.0847,1804.8,1804.7,2.84406]
[1745787343366,7.1925,1804.8,1804.7,1.10786]
[1745787343566,7.1925,1804.8,1804.6,1.10789]
[1745787343567,1.10786,1804.7,1804.6,1.10789]
[1745787343765,3.48176,1804.7,1804.6,1.10789]
[1745787344164,2.3739,1804.7,1804.6,1.10789]
[1745787360684,2.3739,1804.7,1804.6,1.97559]
[1745787361883,4.3989,1804.8,1804.7,1.10786]
[1745787362083,6.0683,1804.8,1804.7,2.81016]
[1745787362280,3.2078,1804.9,1804.8,1.1078]
[1745787362470,3.2078,1804.9,1804.8,2.8101]
[1745787364084,3.3232,1805.0,1804.9,1.10774]
[1745787364390,6.531,1805.0,1804.9,1.10774]
[1745787366385,7.63867,1805.0,1804.9,1.10774]
[1745787366585,6.531,1805.0,1804.9,1.10774]
[1745787367688,7.63867,1805.0,1804.9,1.10774]
[1745787373792,6.531,1805.0,1804.5,9.51476]
[1745787373985,2.68057,1804.9,1804.8,1.10776]
[1745787374186,6.40257,1804.9,1804.8,1.10776]
[1745787374388,1.10782,1804.8,1804.7,1.10781]
[1745787374589,3.54612,1804.8,1804.7,1.10781]
[1745787376794,2.4383,1804.8,1804.7,1.10781]
[1745787377194,3.5461,1804.8,1804.7,1.10781]
[1745787377495,2.4383,1804.8,1804.7,1.10781]
[1745787378195,3.5461,1804.8,1804.7,1.10781]
[1745787379992,6.7539,1804.8,1804.7,1.10781]
[1745787383800,5.6461,1804.8,1804.5,1.728]
[1745787384097,3.58611,1804.7,1804.6,1.1079]
[1745787384491,2.4782,1804.7,1804.4,0.8059]
[1745787384691,12.0137,1804.6,1804.1,3.2078]
[1745787384893,3.2078,1804.4,1804.1,3.2078]
[1745787385198,3.3163,1804.3,1804.1,4.316]
[1745787385398,1.6609,1804.2,1804.1,4.316]
[1745787385697,2.76906,1804.2,1804.1,3.2078]
[1745787385895,2.76906,1804.2,1804.1,4.31603]
[1745787386398,1.6609,1804.2,1804.1,4.31603]
[1745787386596,4.8687,1804.2,1804.1,1.10823]
[1745787387502,4.8687,1804.2,1803.9,1.6775]
[1745787387799,1.7229,1804.1,1804.0,1.10827]
[1745787388303,2.83116,1804.1,1803.9,2.78582]
[1745787388594,1.6669,1804.0,1803.9,2.78582]
[1745787388799,3.3898,1804.0,1803.9,2.78582]
[1745787394505,4.49809,1804.0,1803.9,1.10832]
[1745787395097,7.70593,1804.0,1803.7,3.3014]
[1745787395405,1.6741,1803.9,1803.8,1.10841]
[1745787395702,1.6741,1803.9,1803.8,2.75031]
[1745787398498,4.8747,1804.0,1803.9,1.10835]
[1745787398698,4.8747,1804.0,1803.9,2.72835]
[1745787399103,6.518,1804.0,1803.9,2.72835]
[1745787401310,3.3102,1804.0,1803.9,2.72835]
[1745787403201,4.41849,1804.0,1803.9,1.10835]
[1745787403605,1.10835,1803.9,1803.8,2.73457]
[1745787403799,2.73305,1803.9,1803.8,1.6262]
[1745787404007,2.73309,1803.9,1803.7,5.17555]
[1745787404210,1.6247,1803.8,1803.7,5.17555]
[1745787404708,2.73311,1803.8,1803.7,4.0671]
[1745787404903,2.73311,1803.8,1803.5,0.8318]
[1745787404904,4.8325,1803.8,1803.5,0.8318]
[1745787405102,4.36718,1803.7,1803.6,1.10852]
[1745787405409,4.36718,1803.7,1803.5,3.58445]
[1745787405607,1.5912,1803.6,1803.5,3.58445]
[1745787406706,1.6675,1803.7,1803.6,1.10853]
[1745787406910,1.6675,1803.7,1803.6,2.75263]
[1745787407209,4.36717,1803.7,1803.6,2.75263]
[1745787407511,6.7967,1803.7,1803.6,2.75263]
[1745787410217,10.0045,1803.7,1803.6,2.75263]
[1745787413318,11.11297,1803.7,1803.6,2.75263]
[1745787414115,11.11297,1803.7,1803.5,1.94035]
[1745787414318,1.5844,1803.6,1803.5,1.94035]
[1745787415215,1.5844,1803.6,1803.5,3.61245]
[1745787418731,1.5844,1803.6,1803.5,2.78065]
[1745787420525,1.5844,1803.6,1803.5,1.10855]
[1745787422122,1.58057233,1803.6,1803.5,1.10855]
[1745787426233,2.68910233,1803.6,1803.5,1.10855]
[1745787426536,1.58057233,1803.6,1803.5,1.10855]
[1745787427537,2.68910233,1803.6,1803.5,1.10855]
[1745787427730,1.10859,1803.5,1803.4,2.69281]
[1745787427935,3.51429,1803.5,1803.4,1.5842]
[1745787429136,3.51429,1803.5,1803.4,2.69286]
[1745787430139,1.6186,1803.5,1803.4,2.69286]
[1745787430439,1.6186,1803.5,1803.4,3.53686]
[1745787431229,6.7458,1804.0,1803.8,1.10835]
[1745787431434,6.7458,1804.0,1803.9,2.81305]
[1745787432129,3.2078,1804.0,1803.9,3.09015]
[1745787438744,4.31609,1804.0,1803.9,3.09015]
[1745787438944,3.2078,1804.0,1803.9,3.09015]
[1745787442045,3.538,1804.1,1804.0,1.10829]
[1745787442247,3.538,1804.1,1804.0,2.76589]
[1745787446560,8.4333,1804.2,1804.1,1.10823]
[1745787446759,8.4333,1804.2,1804.1,2.84893]
[1745787448553,6.7448,1804.2,1804.1,2.84893]
[1745787449561,3.2078,1804.2,1804.1,2.84893]
[1745787452753,4.64515,1804.3,1804.2,1.10816]
[1745787452754,7.85295,1804.3,1804.2,1.10816]
[1745787452960,7.85295,1804.3,1804.2,1.5848]
[1745787453158,9.49925,1804.3,1804.2,1.5848]
[1745787454660,9.49925,1804.3,1804.2,2.69296]
[1745787457455,9.49925,1804.3,1804.2,2.97006]
[1745787461262,9.49925,1804.3,1804.2,1.38526]
[1745787464361,9.49925,1804.3,1804.2,0.2771]
[1745787465365,13.22125,1804.3,1804.2,0.2771]
[1745787474569,10.01345,1804.3,1804.2,0.2771]
[1745787474772,13.22125,1804.3,1804.2,0.2771]
[1745787476973,13.22125,1804.3,1804.2,1.9627]
[1745787477977,10.01345,1804.3,1804.2,1.9627]
[1745787478178,13.22125,1804.3,1804.2,1.9627]
[1745787478678,10.01345,1804.3,1804.2,1.9627]
[1745787478873,10.01345,1804.3,1804.2,3.07086]
[1745787479070,13.22125,1804.3,1804.2,3.07086]
[1745787480379,13.22125,1804.3,1804.2,1.9627]
[1745787482082,13.22125,1804.3,1804.2,3.07086]
[1745787483784,11.57495,1804.3,1804.2,3.07086]
[1745787483977,10.4668,1804.3,1804.2,3.07086]
[1745787484180,3.722,1804.3,1804.2,8.07086]
[1745787485276,3.535,1804.4,1804.3,1.1081]
[1745787485477,3.535,1804.4,1804.3,3.5294]
[1745787486785,3.535,1804.4,1804.3,3.8065]
[1745787489089,7.257,1804.4,1804.3,3.8065]
[1745787490090,3.535,1804.4,1804.3,3.8065]
[1745787491097,7.257,1804.4,1804.3,3.8065]
[1745787493900,3.722,1804.4,1804.3,3.8065]
[1745787494094,1.31115816,1804.4,1804.3,7.5285]
[1745787494291,3.2078,1804.5,1804.4,1.10804]
[1745787494491,3.2078,1804.5,1804.4,3.54224]
[1745787496402,3.535,1804.7,1804.6,1.10792]
[1745787497096,3.535,1804.7,1804.6,2.79412]
[1745787497801,8.6982,1804.8,1804.7,1.10786]
[1745787498001,5.1632,1804.8,1804.7,2.79406]
[1745787498203,12.4202,1804.8,1804.7,2.79406]
[1745787498996,8.8852,1804.8,1804.7,2.79406]
[1745787499197,12.4202,1804.8,1804.7,2.79406]
[1745787500701,11.3124,1804.8,1804.7,2.79406]
[1745787501805,12.4202,1804.8,1804.7,2.79406]
[1745787501999,14.0495,1804.8,1804.7,2.79406]
[1745787503104,14.0495,1804.8,1804.7,1.6862]
[1745787503305,1.10796,1804.6,1804.5,1.10795]
[1745787503504,1.10796,1804.6,1804.5,2.71275]
[1745787503708,3.56381,1804.7,1804.6,1.10792]
[1745787504205,7.28581,1804.7,1804.6,1.10792]
[1745787505413,1.10792,1804.6,1804.5,2.71275]
[1745787505607,5.6437,1804.6,1804.5,2.71275]
[1745787506099,9.3657,1804.6,1804.5,2.71275]
[1745787507108,9.3657,1804.6,1804.5,2.98975]
[1745787507610,6.1579,1804.6,1804.5,2.98975]
[1745787509110,7.26582,1804.6,1804.5,2.98975]
[1745787509303,6.1579,1804.6,1804.5,2.98975]
[1745787513310,7.26582,1804.6,1804.5,2.98975]
[1745787513516,7.26582,1804.6,1804.5,0.277]
[1745787514313,7.26582,1804.6,1804.5,1.38498]
[1745787516017,6.1579,1804.6,1804.5,1.38498]
[1745787516917,7.26582,1804.6,1804.5,1.38498]
[1745787517108,7.26582,1804.6,1804.5,3.09468]
[1745787517712,7.26582,1804.6,1804.5,1.9867]
[1745787519024,7.26582,1804.6,1804.5,3.09468]
[1745787519225,7.26582,1804.6,1804.5,1.9867]
[1745787519424,7.26582,1804.6,1804.5,3.09468]
[1745787523229,10.47362,1804.6,1804.5,3.09468]
[1745787526031,7.26582,1804.6,1804.5,3.09468]
[1745787529934,10.47362,1804.6,1804.5,3.09468]
[1745787530835,10.47362,1804.6,1804.5,1.9867]
[1745787531235,10.47362,1804.6,1804.5,0.277]
[1745787531826,15.47362,1804.6,1804.5,0.277]
[1745787532034,10.47362,1804.6,1804.5,0.277]
[1745787532341,2.77002,1804.5,1804.1,1.10819]
[1745787532541,4.31599,1804.2,1804.1,1.6897]
[1745787533045,1.10823,1804.1,1804.0,1.10825]
[1745787533231,4.53333,1804.1,1804.0,2.79795]
[1745787533432,8.06733,1804.1,1804.0,1.6897]
[1745787534136,11.78933,1804.1,1804.0,1.6897]
[1745787536841,11.78933,1804.1,1804.0,2.79799]
[1745787541444,11.78933,1804.1,1804.0,1.6897]
[1745787542237,11.78933,1804.1,1804.0,2.79799]
[1745787543039,11.78933,1804.1,1804.0,1.6897]
[1745787546544,11.78933,1804.1,1804.0,2.79799]
[1745787552047,11.78933,1804.1,1804.0,1.6897]
[1745787552243,1.10841,1803.8,1803.7,0.8573]
[1745787552435,1.10851,1803.7,1803.6,1.7052]
[1745787552749,4.47611,1803.7,1803.6,1.7052]
[1745787553149,8.19811,1803.7,1803.6,1.7052]
[1745787553341,8.19811,1803.7,1803.6,2.81373]
[1745787554241,8.19811,1803.7,1803.6,1.7052]
[1745787554747,8.19811,1803.7,1803.6,2.81373]
[1745787554947,8.19811,1803.7,1803.6,1.7052]
[1745787555249,8.19811,1803.7,1803.6,2.81373]
[1745787556351,8.19811,1803.7,1803.6,1.7052]
[1745787558844,7.0896,1803.7,1803.4,1.5934]
[1745787559045,5.91113,1803.6,1803.5,1.6612]
[1745787560255,9.63313,1803.6,1803.5,1.6612]
[1745787560451,6.9298,1803.6,1803.5,2.76979]
[1745787561147,3.2078,1803.6,1803.5,2.76979]
[1745787561455,4.31633,1803.6,1803.5,2.76979]
[1745787562654,3.2078,1803.6,1803.5,2.76979]
[1745787566259,3.2078,1803.6,1803.5,7.76979]
[1745787567152,3.2078,1803.6,1803.5,11.49179]
[1745787568952,3.2078,1803.6,1803.5,6.49179]
[1745787569460,3.2078,1803.8,1803.7,1.10847]
[1745787570158,4.31621,1803.8,1803.7,3.59907]
[1745787570563,3.2078,1803.8,1803.7,3.59907]
[1745787571161,5.1171,1803.9,1803.7,3.59907]
[1745787571365,5.1171,1803.9,1803.8,1.6248]
[1745787571959,5.1171,1803.9,1803.8,2.73321]
[1745787572159,8.8391,1803.9,1803.8,2.73321]
[1745787572461,8.8391,1803.9,1803.8,1.6248]
[1745787573165,5.1171,1803.9,1803.8,1.6248]
[1745787573664,7.7004,1803.9,1803.8,1.6248]
[1745787574467,11.4224,1803.9,1803.8,1.6248]
[1745787576171,11.4224,1803.9,1803.8,2.73321]
[1745787577771,8.2146,1803.9,1803.8,2.73321]
[1745787577971,11.4224,1803.9,1803.8,2.73321]
[1745787578571,8.2146,1803.9,1803.8,2.73321]
[1745787578773,11.4224,1803.9,1803.8,2.73321]
[1745787579069,11.4224,1803.9,1803.8,1.6248]
[1745787579575,11.4224,1803.9,1803.8,2.73321]
[1745787579872,11.4224,1803.9,1803.8,1.6248]
[1745787580672,1.10841,1803.8,1803.7,1.10842]
[1745787580875,2.77821,1803.8,1803.7,1.10842]
[1745787581064,1.10847,1803.7,1803.6,1.6717]
[1745787581264,3.54617,1803.7,1803.6,1.6717]
[1745787581772,3.54617,1803.7,1803.6,2.78023]
[1745787581973,6.75397,1803.7,1803.6,1.6717]
[1745787582274,6.75397,1803.7,1803.6,2.78023]
[1745787582480,3.54617,1803.7,1803.6,1.6717]
[1745787582980,6.75402,1803.7,1803.5,1.10856]
[1745787583181,3.55633,1803.6,1803.5,1.10856]
[1745787584777,3.55633,1803.6,1803.4,1.6465]
[1745787584778,1.10861,1803.5,1803.2,3.2078]
[1745787584977,3.50911,1803.5,1803.4,1.10866]
[1745787585178,2.4005,1803.5,1803.4,1.10866]
[1745787585979,2.4005,1803.5,1803.4,2.72016]
[1745787586580,3.50909,1803.5,1803.4,2.72016]
[1745787586780,2.4005,1803.5,1803.4,2.72016]
[1745787587180,7.23109,1803.5,1803.4,2.72016]
[1745787587581,7.23109,1803.5,1803.4,1.6115]
[1745787588187,7.23109,1803.5,1803.4,2.72016]
[1745787591185,3.50909,1803.5,1803.4,2.72016]
[1745787592485,3.50909,1803.5,1803.4,1.10866]
[1745787593782,5.6083,1803.5,1803.4,1.10866]
[1745787594576,6.71689,1803.5,1803.4,1.10866]
[1745787595588,5.6083,1803.5,1803.4,1.10866]
[1745787596689,4.0059,1803.5,1803.4,1.10866]
[1745787597187,0.7981,1803.5,1803.4,1.10866]
[1745787600690,10.55319,1803.6,1803.5,1.10859]
[1745787600886,9.69259,1803.6,1803.5,1.10859]
[1745787601086,6.9298,1803.6,1803.5,1.10859]
[1745787601489,8.03833,1803.6,1803.5,1.10859]
[1745787601691,8.03833,1803.6,1803.5,2.84339]
[1745787601885,8.03833,1803.6,1803.5,1.7348]
[1745787602084,8.89243,1803.6,1803.5,1.7348]
[1745787602788,10.62533,1803.6,1803.5,1.7348]
[1745787603195,10.62533,1803.6,1803.5,2.84339]
[1745787610906,7.41753,1803.6,1803.5,2.84339]
[1745787611198,10.62533,1803.6,1803.5,2.84339]
[1745787612506,10.62533,1803.6,1803.5,1.7348]
[1745787613101,10.62533,1803.6,1803.5,2.84339]
[1745787613704,10.62533,1803.6,1803.5,1.7348]
[1745787614005,1.10859,1803.5,1803.4,1.10861]
[1745787614305,3.62949,1803.5,1803.4,1.10861]
[1745787615201,7.35149,1803.5,1803.4,1.10861]
[1745787617602,1.10887,1803.1,1802.9,3.2078]
[1745787617809,1.10887,1803.1,1803.0,2.82408]
[1745787618303,4.35323,1803.2,1803.0,2.82408]
[1745787618807,4.35323,1803.2,1803.1,1.10884]
[1745787619101,1.10884,1803.1,1803.0,2.82406]
[1745787619311,1.10884,1803.1,1803.0,1.7152]
[1745787619600,4.31664,1803.1,1803.0,2.8241]
[1745787620007,3.2078,1803.1,1803.0,2.8241]
[1745787620207,4.31664,1803.1,1803.0,2.8241]
[1745787620408,4.31664,1803.1,1803.0,1.7152]
[1745787620606,3.2078,1803.1,1802.9,1.10892]
[1745787620809,4.8848,1803.1,1802.9,1.10892]
[1745787621108,1.9036,1803.0,1802.9,1.10892]
[1745787621302,1.9036,1803.0,1802.9,1.7171]
[1745787621504,3.5806,1803.0,1802.9,1.7171]
[1745787622307,7.3026,1803.0,1802.9,1.7171]
[1745787623106,3.5806,1803.0,1802.9,1.7171]
[1745787623311,3.5806,1803.0,1802.8,1.96738]
[1745787623505,1.677,1802.9,1802.8,1.96738]
[1745787625712,1.677,1802.9,1802.8,2.75548]
[1745787625913,0.7947,1803.0,1802.9,1.10896]
[1745787626108,4.5167,1803.0,1802.9,2.81596]
[1745787626413,3.722,1803.0,1802.9,2.81596]
[1745787627114,3.2078,1803.1,1803.0,1.1089]
[1745787627314,3.2078,1803.1,1803.0,3.5509]
[1745787629312,4.64278,1803.2,1803.1,1.10884]
[1745787629514,5.50838,1803.2,1803.1,2.70164]
[1745787630112,9.23038,1803.2,1803.1,2.70164]